[Event "Campeonato de Aragón Individual Absoluto 2022"]
[Site "Zaragoza, Spain"]
[Date "2022.08.29"]
[Round "3.2"]
[White "Glavina, Pablo"]
[Black "Gaspar Calvo, Luis Alberto"]
[Result "1-0"]
[TimeControl "90 min + 30 sg"]
[WhiteElo "2394"]
[BlackElo "1888"]

1. d4 {[%clk 01:30:58]} {[%emt 00:00:02]} Nf6 {[%clk 01:30:45]} {[%emt
00:00:15]} 2. c4 {[%clk 01:31:22]} {[%emt 00:00:05]} g6 {[%clk 01:30:58]}
{[%emt 00:00:17]} 3. Nc3 {[%clk 01:31:47]} {[%emt 00:00:05]} Bg7 {[%clk
01:31:21]} {[%emt 00:00:08]} 4. e4 {[%clk 01:32:11]} {[%emt 00:00:06]} d6
{[%clk 01:31:42]} {[%emt 00:00:09]} 5. Be2 {[%clk 01:32:36]} {[%emt 00:00:05]}
O-O {[%clk 01:31:56]} {[%emt 00:00:16]} 6. Bg5 {[%clk 01:33:01]} {[%emt
00:00:04]} c5 {[%clk 01:31:42]} {[%emt 00:00:45]} 7. d5 {[%clk 01:31:36]}
{[%emt 00:01:56]} b5 {[%clk 01:31:31]} {[%emt 00:00:41]} 8. cxb5 {[%clk
01:31:40]} {[%emt 00:00:25]} a6 {[%clk 01:31:42]} {[%emt 00:00:18]} 9. a4
{[%clk 01:32:01]} {[%emt 00:00:09]} axb5 {[%clk 01:31:32]} {[%emt 00:00:41]} 10.
Bxb5 {[%clk 01:32:24]} {[%emt 00:00:06]} Ba6 {[%clk 01:31:04]} {[%emt
00:00:57]} 11. Nge2 {[%clk 01:30:42]} {[%emt 00:02:13]} Bxb5 {[%clk 01:29:35]}
{[%emt 00:02:00]} 12. axb5 {[%clk 01:31:03]} {[%emt 00:00:09]} Rxa1 {[%clk
01:29:19]} {[%emt 00:00:45]} 13. Qxa1 {[%clk 01:31:28]} {[%emt 00:00:05]} Nbd7
{[%clk 01:28:53]} {[%emt 00:00:56]} 14. O-O {[%clk 01:31:28]} {[%emt 00:00:29]}
h6 {[%clk 01:27:58]} {[%emt 00:01:26]} 15. Bf4 {[%clk 01:25:06]} {[%emt
00:06:52]} Nb6 {[%clk 01:24:46]} {[%emt 00:03:42]} 16. Qa7 {[%clk 01:23:55]}
{[%emt 00:01:40]} g5 {[%clk 01:19:24]} {[%emt 00:05:53]} 17. Bg3 {[%clk
01:18:43]} {[%emt 00:05:42]} Nh5 {[%clk 01:18:08]} {[%emt 00:01:46]} 18. Ra1
{[%clk 01:18:58]} {[%emt 00:00:15]} Nxg3 {[%clk 01:17:25]} {[%emt 00:01:14]} 19.
Nxg3 {[%clk 01:17:40]} {[%emt 00:01:48]} e6 {[%clk 01:14:51]} {[%emt 00:03:04]}
20. Qb7 {[%clk 01:12:19]} {[%emt 00:05:51]} Qb8 {[%clk 01:10:10]} {[%emt
00:05:12]} 21. Ra7 {[%clk 01:09:43]} {[%emt 00:03:05]} Qxb7 {[%clk 01:09:23]}
{[%emt 00:01:18]} 22. Rxb7 {[%clk 01:10:09]} {[%emt 00:00:04]} Nc4 {[%clk
01:09:03]} {[%emt 00:00:50]} 23. b6 {[%clk 01:05:24]} {[%emt 00:05:15]} Nxb2
{[%clk 01:06:51]} {[%emt 00:02:42]} 24. Nb5 {[%clk 01:05:49]} {[%emt 00:00:05]}
Nc4 {[%clk 00:59:10]} {[%emt 00:08:11]} 25. Nc7 {[%clk 01:05:51]} {[%emt
00:00:28]} exd5 {[%clk 00:57:19]} {[%emt 00:02:21]} 26. exd5 {[%clk 01:05:36]}
{[%emt 00:00:45]} Be5 {[%clk 00:50:22]} {[%emt 00:07:27]} 27. Nf5 {[%clk
01:05:44]} {[%emt 00:00:22]} h5 {[%clk 00:48:33]} {[%emt 00:02:19]} 28. g3
{[%clk 01:04:00]} {[%emt 00:02:14]} g4 {[%clk 00:46:43]} {[%emt 00:02:20]} 29.
Kg2 {[%clk 01:03:05]} {[%emt 00:01:25]} Kh8 {[%clk 00:44:28]} {[%emt 00:02:45]}
30. h3 {[%clk 01:02:40]} {[%emt 00:00:55]} Bd4 {[%clk 00:37:27]} {[%emt
00:07:31]} 31. hxg4 {[%clk 01:02:23]} {[%emt 00:00:47]} hxg4 {[%clk 00:37:06]}
{[%emt 00:00:51]} 32. Nb5 {[%clk 01:01:36]} {[%emt 00:01:17]} Be5 {[%clk
00:37:03]} {[%emt 00:00:34]} 33. Nh6 {[%clk 01:02:01]} {[%emt 00:00:05]} f5
{[%clk 00:35:58]} {[%emt 00:01:35]} 34. Nc7 {[%clk 00:59:01]} {[%emt 00:03:30]}
Nxb6 {[%clk 00:19:12]} {[%emt 00:17:16]} 35. Ne6 {[%clk 00:59:26]} {[%emt
00:00:05]} Rf6 {[%clk 00:18:47]} {[%emt 00:00:56]} 36. Nf7+ {[%clk 00:59:47]}
{[%emt 00:00:09]} Rxf7 {[%clk 00:18:35]} {[%emt 00:00:41]} 37. Rxf7 {[%clk
01:00:13]} {[%emt 00:00:04]} Nxd5 {[%clk 00:18:44]} {[%emt 00:00:21]} 38. Nxc5
{[%clk 01:00:39]} {[%emt 00:00:04]} f4 {[%clk 00:15:19]} {[%emt 00:03:55]} 39.
Nd3 {[%clk 00:59:33]} {[%emt 00:01:37]} f3+ {[%clk 00:14:55]} {[%emt 00:00:54]}
40. Kf1 {[%clk 00:59:57]} {[%emt 00:00:05]} Bg7 {[%clk 00:08:57]} {[%emt
00:06:29]} 41. Nf4 {[%clk 00:59:42]} {[%emt 00:00:45]} Nf6 {[%clk 00:08:14]}
{[%emt 00:01:13]} 42. Ne6 {[%clk 01:00:06]} {[%emt 00:00:06]} 1-0

[Event "Campeonato de Aragón Individual Absoluto 2022"]
[Site "Zaragoza, Spain"]
[Date "2022.08.29"]
[Round "3.3"]
[White "Ruiz Fernandez, Daniel"]
[Black "Quintin Navarro, Alberto"]
[Result "0-1"]
[TimeControl "90 min + 30 sg"]
[WhiteElo "1837"]
[BlackElo "2372"]

1. Nf3 {[%clk 01:30:57]} {[%emt 00:00:01]} d5 {[%clk 01:28:44]} {[%emt
00:02:16]} 2. c4 {[%clk 01:31:21]} {[%emt 00:00:06]} e6 {[%clk 01:29:03]}
{[%emt 00:00:11]} 3. g3 {[%clk 01:31:44]} {[%emt 00:00:07]} Nf6 {[%clk
01:27:08]} {[%emt 00:02:26]} 4. Bg2 {[%clk 01:32:08]} {[%emt 00:00:05]} Be7
{[%clk 01:27:34]} {[%emt 00:00:04]} 5. d4 {[%clk 01:32:26]} {[%emt 00:00:13]}
O-O {[%clk 01:27:56]} {[%emt 00:00:08]} 6. Qc2 {[%clk 01:31:37]} {[%emt
00:01:19]} b6 {[%clk 01:24:41]} {[%emt 00:03:45]} 7. O-O {[%clk 01:31:06]}
{[%emt 00:01:01]} dxc4 {[%clk 01:24:39]} {[%emt 00:00:32]} 8. Qxc4 {[%clk
01:15:31]} {[%emt 00:16:05]} Ba6 {[%clk 01:22:10]} {[%emt 00:03:00]} 9. Qc2
{[%clk 01:15:39]} {[%emt 00:00:22]} Nbd7 {[%clk 01:22:14]} {[%emt 00:00:26]} 10.
Rd1 {[%clk 01:14:37]} {[%emt 00:01:32]} c5 {[%clk 01:11:35]} {[%emt 00:11:09]}
11. Nc3 {[%clk 01:11:16]} {[%emt 00:03:51]} Bb7 {[%clk 01:03:17]} {[%emt
00:08:47]} 12. e4 {[%clk 00:58:06]} {[%emt 00:13:39]} cxd4 {[%clk 01:02:25]}
{[%emt 00:01:24]} 13. Nxd4 {[%clk 00:57:59]} {[%emt 00:00:36]} Qc8 {[%clk
00:59:35]} {[%emt 00:03:20]} 14. Bg5 {[%clk 00:48:18]} {[%emt 00:10:11]} a6
{[%clk 00:55:41]} {[%emt 00:04:24]} 15. Qe2 {[%clk 00:47:30]} {[%emt 00:01:18]}
h6 {[%clk 00:55:14]} {[%emt 00:00:57]} 16. Bxf6 {[%clk 00:46:17]} {[%emt
00:01:42]} Bxf6 {[%clk 00:55:33]} {[%emt 00:00:11]} 17. Rac1 {[%clk 00:46:43]}
{[%emt 00:00:05]} Bxd4 {[%clk 00:46:10]} {[%emt 00:09:53]} 18. Rxd4 {[%clk
00:47:06]} {[%emt 00:00:06]} Rd8 {[%clk 00:45:43]} {[%emt 00:00:57]} 19. Rcd1
{[%clk 00:45:55]} {[%emt 00:01:41]} Kf8 {[%clk 00:39:44]} {[%emt 00:06:29]} 20.
Qd2 {[%clk 00:35:05]} {[%emt 00:11:20]} Ke8 {[%clk 00:31:59]} {[%emt 00:08:14]}
21. Rd6 {[%clk 00:20:10]} {[%emt 00:15:25]} Ne5 {[%clk 00:27:15]} {[%emt
00:05:14]} 22. Rxd8+ {[%clk 00:16:32]} {[%emt 00:04:09]} Qxd8 {[%clk 00:27:30]}
{[%emt 00:00:15]} 23. Qxd8+ {[%clk 00:16:58]} {[%emt 00:00:04]} Rxd8 {[%clk
00:27:53]} {[%emt 00:00:06]} 24. Rxd8+ {[%clk 00:17:25]} {[%emt 00:00:04]} Kxd8
{[%clk 00:28:17]} {[%emt 00:00:05]} 25. Kf1 {[%clk 00:17:45]} {[%emt 00:00:10]}
g5 {[%clk 00:28:00]} {[%emt 00:00:48]} 26. f3 {[%clk 00:17:26]} {[%emt
00:00:49]} f5 {[%clk 00:24:00]} {[%emt 00:04:29]} 27. Ke2 {[%clk 00:08:27]}
{[%emt 00:09:30]} f4 {[%clk 00:21:07]} {[%emt 00:03:23]} 28. gxf4 {[%clk
00:08:25]} {[%emt 00:00:31]} gxf4 {[%clk 00:21:31]} {[%emt 00:00:06]} 29. b3
{[%clk 00:08:48]} {[%emt 00:00:07]} Kd7 {[%clk 00:17:44]} {[%emt 00:04:17]} 30.
Kd2 {[%clk 00:09:06]} {[%emt 00:00:12]} Kd6 {[%clk 00:14:11]} {[%emt 00:04:03]}
31. Ne2 {[%clk 00:06:15]} {[%emt 00:03:21]} Ng6 {[%clk 00:14:36]} {[%emt
00:00:05]} 32. Bh3 {[%clk 00:04:20]} {[%emt 00:02:25]} e5 {[%clk 00:13:59]}
{[%emt 00:01:07]} 33. Nc1 {[%clk 00:02:37]} {[%emt 00:02:14]} Nh4 {[%clk
00:10:42]} {[%emt 00:03:46]} 34. Bg4 {[%clk 00:02:32]} {[%emt 00:00:35]} Bc6
{[%clk 00:09:58]} {[%emt 00:01:14]} 35. Nd3 {[%clk 00:02:27]} {[%emt 00:00:36]}
Be8 {[%clk 00:09:56]} {[%emt 00:00:32]} 36. Ke2 {[%clk 00:02:40]} {[%emt
00:00:17]} h5 {[%clk 00:09:38]} {[%emt 00:00:48]} 37. Bc8 {[%clk 00:03:05]}
{[%emt 00:00:05]} Bb5 {[%clk 00:09:57]} {[%emt 00:00:11]} 38. a4 {[%clk
00:02:30]} {[%emt 00:01:05]} Bxd3+ {[%clk 00:10:21]} {[%emt 00:00:05]} 39. Kxd3
{[%clk 00:02:57]} {[%emt 00:00:04]} Nxf3 {[%clk 00:09:14]} {[%emt 00:01:37]} 40.
Bxa6 {[%clk 00:03:08]} {[%emt 00:00:18]} Nxh2 {[%clk 00:09:39]} {[%emt
00:00:05]} 41. Bc8 {[%clk 00:03:04]} {[%emt 00:00:35]} Kc5 {[%clk 00:09:34]}
{[%emt 00:00:35]} 42. Kc3 {[%clk 00:02:53]} {[%emt 00:00:41]} f3 {[%clk
00:09:11]} {[%emt 00:00:52]} 43. b4+ {[%clk 00:03:15]} {[%emt 00:00:08]} Kc6
{[%clk 00:08:45]} {[%emt 00:00:56]} 44. a5 {[%clk 00:03:20]} {[%emt 00:00:26]}
f2 {[%clk 00:08:30]} {[%emt 00:00:45]} 45. Bh3 {[%clk 00:03:34]} {[%emt
00:00:16]} bxa5 {[%clk 00:08:42]} {[%emt 00:00:18]} 46. Kd4 {[%emt 00:00:19]}
0-1

[Event "Campeonato de Aragón Individual Absoluto 2022"]
[Site "Zaragoza, Spain"]
[Date "2022.08.29"]
[Round "3.4"]
[White "Vela Frago, Alberto"]
[Black "Moya Gimeno, Raul"]
[Result "1/2-1/2"]
[TimeControl "90 min + 30 sg"]
[WhiteElo "2232"]
[BlackElo "1885"]

1. d4 {[%clk 01:28:51]} {[%emt 00:02:09]} Nf6 {[%clk 01:30:59]} {[%emt
00:00:02]} 2. Nf3 {[%clk 01:29:05]} {[%emt 00:00:15]} g6 {[%clk 01:31:19]}
{[%emt 00:00:10]} 3. c4 {[%clk 01:29:20]} {[%emt 00:00:15]} Bg7 {[%clk
01:31:46]} {[%emt 00:00:03]} 4. Nc3 {[%clk 01:29:40]} {[%emt 00:00:10]} O-O
{[%clk 01:32:11]} {[%emt 00:00:05]} 5. e4 {[%clk 01:30:02]} {[%emt 00:00:08]}
d6 {[%clk 01:32:39]} {[%emt 00:00:02]} 6. Be2 {[%clk 01:30:16]} {[%emt
00:00:14]} e5 {[%clk 01:33:08]} {[%emt 00:00:02]} 7. d5 {[%clk 01:30:34]}
{[%emt 00:00:12]} a5 {[%clk 01:33:36]} {[%emt 00:00:02]} 8. Bg5 {[%clk
01:30:40]} {[%emt 00:00:23]} h6 {[%clk 01:34:05]} {[%emt 00:00:02]} 9. Be3
{[%clk 01:30:59]} {[%emt 00:00:11]} Ng4 {[%clk 01:32:12]} {[%emt 00:02:23]} 10.
Bd2 {[%clk 01:30:56]} {[%emt 00:00:32]} f5 {[%clk 01:32:15]} {[%emt 00:00:27]}
11. h3 {[%clk 01:31:21]} {[%emt 00:00:05]} Nf6 {[%clk 01:32:42]} {[%emt
00:00:04]} 12. exf5 {[%clk 01:31:45]} {[%emt 00:00:06]} gxf5 {[%clk 01:32:52]}
{[%emt 00:00:21]} 13. g4 {[%clk 01:32:08]} {[%emt 00:00:07]} Ne4 {[%clk
01:21:21]} {[%emt 00:12:01]} 14. Nxe4 {[%clk 01:31:01]} {[%emt 00:01:37]} fxe4
{[%clk 01:21:38]} {[%emt 00:00:13]} 15. Nh2 {[%clk 01:31:26]} {[%emt 00:00:05]}
Qh4 {[%clk 01:19:54]} {[%emt 00:02:13]} 16. Be3 {[%clk 01:31:23]} {[%emt
00:00:33]} Na6 {[%clk 01:18:53]} {[%emt 00:01:31]} 17. Nf1 {[%clk 01:28:06]}
{[%emt 00:03:47]} Nc5 {[%clk 01:15:14]} {[%emt 00:04:10]} 18. Ng3 {[%clk
01:26:57]} {[%emt 00:01:38]} Bd7 {[%clk 01:15:38]} {[%emt 00:00:06]} 19. Qd2
{[%clk 01:08:25]} {[%emt 00:19:02]} a4 {[%clk 01:09:36]} {[%emt 00:06:33]} 20.
O-O-O {[%clk 00:57:44]} {[%emt 00:11:10]} b5 {[%clk 00:59:00]} {[%emt
00:11:06]} 21. cxb5 {[%clk 00:50:10]} {[%emt 00:08:03]} Rab8 {[%clk 00:53:14]}
{[%emt 00:06:16]} 22. Bxc5 {[%clk 00:49:15]} {[%emt 00:01:26]} dxc5 {[%clk
00:53:42]} {[%emt 00:00:02]} 23. Nxe4 {[%clk 00:49:31]} {[%emt 00:00:13]} Bxb5
{[%clk 00:53:09]} {[%emt 00:01:03]} 24. d6 {[%clk 00:39:40]} {[%emt 00:10:21]}
cxd6 {[%clk 00:50:08]} {[%emt 00:03:32]} 25. Bxb5 {[%clk 00:38:37]} {[%emt
00:01:33]} Rxb5 {[%clk 00:50:31]} {[%emt 00:00:07]} 26. Nxd6 {[%clk 00:38:56]}
{[%emt 00:00:11]} Rbb8 {[%clk 00:47:31]} {[%emt 00:03:30]} 27. Nf5 {[%clk
00:34:34]} {[%emt 00:04:52]} Qf6 {[%clk 00:45:35]} {[%emt 00:02:25]} 28. Rhe1
{[%clk 00:27:08]} {[%emt 00:07:57]} a3 {[%clk 00:41:41]} {[%emt 00:04:25]} 29.
b3 {[%clk 00:25:18]} {[%emt 00:02:20]} e4 {[%clk 00:41:58]} {[%emt 00:00:13]}
30. Qc2 {[%clk 00:25:23]} {[%emt 00:00:25]} Rbd8 {[%clk 00:40:35]} {[%emt
00:01:53]} 31. Rxd8 {[%clk 00:22:44]} {[%emt 00:03:09]} Rxd8 {[%clk 00:41:01]}
{[%emt 00:00:03]} 32. Nxg7 {[%clk 00:22:00]} {[%emt 00:01:14]} Qa1+ {[%clk
00:41:19]} {[%emt 00:00:12]} 33. Qb1 {[%clk 00:21:47]} {[%emt 00:00:03]} Qc3+
1/2-1/2

[Event "Campeonato de Aragón Individual Absoluto 2022"]
[Site "Zaragoza, Spain"]
[Date "2022.08.29"]
[Round "3.5"]
[White "Sanjuan Segura, Ignacio"]
[Black "Ereza Vizcarra, Fernando"]
[Result "0-1"]
[TimeControl "90 min + 30 sg"]
[WhiteElo "1815"]
[BlackElo "2132"]

1. Nf3 {[%clk 01:29:48]} {[%emt 00:01:11]} c5 {[%clk 01:29:11]} {[%emt
00:01:50]} 2. b3 {[%clk 01:30:05]} {[%emt 00:00:13]} Nf6 {[%clk 01:27:41]}
{[%emt 00:02:00]} 3. Bb2 {[%clk 01:30:25]} {[%emt 00:00:10]} g6 {[%clk
01:27:41]} {[%emt 00:00:30]} 4. c4 {[%clk 01:28:53]} {[%emt 00:02:01]} Bg7
{[%clk 01:28:02]} {[%emt 00:00:10]} 5. g3 {[%clk 01:29:14]} {[%emt 00:00:09]}
O-O {[%clk 01:28:05]} {[%emt 00:00:27]} 6. Bg2 {[%clk 01:29:39]} {[%emt
00:00:05]} Nc6 {[%clk 01:28:22]} {[%emt 00:00:13]} 7. O-O {[%clk 01:29:44]}
{[%emt 00:00:24]} d6 {[%clk 01:28:37]} {[%emt 00:00:15]} 8. d3 {[%clk
01:29:30]} {[%emt 00:00:44]} Bd7 {[%clk 01:24:37]} {[%emt 00:04:31]} 9. Nc3
{[%clk 01:29:36]} {[%emt 00:00:23]} Qc8 {[%clk 01:25:03]} {[%emt 00:00:05]} 10.
Qc2 {[%clk 01:26:15]} {[%emt 00:03:50]} Bh3 {[%clk 01:25:28]} {[%emt 00:00:06]}
11. e4 {[%clk 01:23:22]} {[%emt 00:03:22]} Bxg2 {[%clk 01:25:53]} {[%emt
00:00:06]} 12. Kxg2 {[%clk 01:23:48]} {[%emt 00:00:04]} a6 {[%clk 01:24:45]}
{[%emt 00:01:39]} 13. a3 {[%clk 01:19:03]} {[%emt 00:05:15]} Rb8 {[%clk
01:24:53]} {[%emt 00:00:22]} 14. Nd5 {[%clk 01:17:30]} {[%emt 00:02:02]} b5
{[%clk 01:16:57]} {[%emt 00:08:27]} 15. Rab1 {[%clk 01:14:07]} {[%emt
00:03:52]} Qb7 {[%clk 01:11:11]} {[%emt 00:06:17]} 16. Bxf6 {[%clk 01:09:21]}
{[%emt 00:05:15]} exf6 {[%clk 01:11:32]} {[%emt 00:00:10]} 17. b4 {[%clk
01:00:15]} {[%emt 00:09:36]} Ne7 {[%clk 00:51:25]} {[%emt 00:20:38]} 18. Nxe7+
{[%clk 00:39:42]} {[%emt 00:21:02]} Qxe7 {[%clk 00:51:54]} {[%emt 00:00:02]} 19.
a4 {[%clk 00:40:04]} {[%emt 00:00:09]} cxb4 {[%clk 00:44:04]} {[%emt 00:08:20]}
20. axb5 {[%clk 00:38:42]} {[%emt 00:01:51]} a5 {[%clk 00:44:31]} {[%emt
00:00:03]} 21. Nd4 {[%clk 00:34:19]} {[%emt 00:04:53]} Qc7 {[%clk 00:41:23]}
{[%emt 00:03:39]} 22. Nc6 {[%clk 00:34:03]} {[%emt 00:00:45]} Ra8 {[%clk
00:41:52]} 23. d4 {[%clk 00:31:06]} {[%emt 00:03:27]} Qb7 {[%clk 00:40:41]}
{[%emt 00:01:42]} 24. Kg1 {[%clk 00:26:29]} {[%emt 00:05:07]} Rfc8 {[%clk
00:33:44]} {[%emt 00:07:28]} 25. Qa4 {[%clk 00:24:19]} {[%emt 00:02:39]} Re8
{[%clk 00:30:17]} {[%emt 00:03:57]} 26. Rfe1 {[%clk 00:24:13]} {[%emt
00:00:36]} Qb6 {[%clk 00:30:39]} {[%emt 00:00:09]} 27. Rbd1 {[%clk 00:18:43]}
{[%emt 00:06:00]} f5 {[%clk 00:29:39]} {[%emt 00:01:31]} 28. e5 {[%clk
00:16:24]} {[%emt 00:02:48]} dxe5 {[%clk 00:23:50]} {[%emt 00:06:19]} 29. dxe5
{[%clk 00:16:40]} {[%emt 00:00:13]} Qc5 {[%clk 00:21:25]} {[%emt 00:02:56]} 30.
Qb3 {[%clk 00:14:44]} {[%emt 00:02:26]} Bf8 {[%clk 00:20:57]} {[%emt 00:00:59]}
31. Rd5 {[%clk 00:08:27]} {[%emt 00:06:46]} Qb6 {[%clk 00:20:56]} {[%emt
00:00:31]} 32. Qb2 {[%clk 00:07:09]} {[%emt 00:01:48]} Bc5 {[%clk 00:19:54]}
{[%emt 00:01:32]} 33. Rd7 {[%clk 00:06:24]} {[%emt 00:01:15]} Re6 {[%clk
00:20:08]} {[%emt 00:00:16]} 34. Red1 {[%clk 00:03:57]} {[%emt 00:02:56]} a4
{[%clk 00:16:15]} {[%emt 00:04:23]} 35. Rd8+ {[%clk 00:02:29]} {[%emt
00:01:58]} Rxd8 {[%clk 00:16:44]} {[%emt 00:00:01]} 36. Rxd8+ {[%clk 00:02:57]}
{[%emt 00:00:01]} Kg7 {[%clk 00:17:09]} {[%emt 00:00:05]} 37. Rb8 {[%clk
00:02:39]} {[%emt 00:00:48]} a3 {[%clk 00:17:18]} {[%emt 00:00:22]} 38. Qb3
{[%clk 00:01:30]} {[%emt 00:01:38]} Qc7 {[%clk 00:12:09]} {[%emt 00:05:39]} 39.
Ra8 {[%clk 00:01:59]} {[%emt 00:00:02]} Rxc6 {[%clk 00:10:37]} {[%emt
00:02:02]} 40. bxc6 {[%clk 00:02:27]} {[%emt 00:00:02]} Qxc6 {[%clk 00:11:05]}
{[%emt 00:00:02]} 41. Rd8 {[%clk 00:01:38]} {[%emt 00:01:18]} Bxf2+ {[%clk
00:07:29]} {[%emt 00:04:07]} 42. Kxf2 {[%clk 00:02:06]} {[%emt 00:00:02]} Qb6+
{[%clk 00:07:56]} {[%emt 00:00:03]} 43. c5 {[%clk 00:01:53]} {[%emt 00:00:42]}
Qxd8 {[%clk 00:08:23]} {[%emt 00:00:03]} 44. Qxb4 {[%clk 00:02:01]} {[%emt
00:00:22]} Qd3 {[%clk 00:08:45]} {[%emt 00:00:08]} 45. e6 {[%clk 00:01:51]}
{[%emt 00:00:40]} fxe6 {[%clk 00:08:38]} {[%emt 00:00:37]} 46. c6 {[%clk
00:02:00]} {[%emt 00:00:20]} Qc2+ {[%clk 00:08:47]} {[%emt 00:00:21]} 47. Kg1
{[%clk 00:01:52]} {[%emt 00:00:38]} Qc1+ {[%clk 00:04:00]} {[%emt 00:05:17]} 48.
Kf2 {[%clk 00:02:10]} {[%emt 00:00:12]} Qc2+ {[%clk 00:03:59]} {[%emt
00:00:31]} 49. Kg1 {[%clk 00:02:32]} {[%emt 00:00:07]} Qxc6 {[%clk 00:03:56]}
{[%emt 00:00:34]} 0-1